Cogmind - Beta 13 @@@ ROGUE MODE // 2024.07.06 @ 17:11:18 Player: Venar246 Result: Destroyed by S-27 Virus with Autogun Performance ------------- Evolutions (1) 500 Regions Visited (5) 1000 Robots Destroyed (20) 100 Value Destroyed (602) 602 Prototype IDs (0) 0 Alien Tech Used (0) 0 Bonus (0) 0 TOTAL SCORE: 2202 Bonus ------- None Cogmind --------- Core Integrity 0/400 Matter 300/300 Energy 240/240 System Corruption 0% Temperature Cool (0) Movement Walking (130) Location -6/Proximity Caves Parts ------- > --- POWER (1) -------- Nuclear Core > --- PROPULSION (3) --- Aluminum Leg Makeshift Leg > --- UTILITY (3) ------ Medium Storage Unit Makeshift System Shield > --- WEAPON (2) ------- Flak Cannon Improved Datajack > --- INVENTORY (10) --- Improved Heat Sink Medium Matter Pod (0) Small Laser Heavy Assault Rifle Flak Cannon Improved Datajack Improved Datajack Plasma Cutter Peak State ------------ > --- POWER ------------ Nuclear Core > --- PROPULSION ------- Aluminum Leg Makeshift Leg > --- UTILITY ---------- Medium Storage Unit Medium Matter Pod Makeshift System Shield > --- WEAPON ----------- Flak Cannon Improved Datajack > --- INVENTORY -------- Improved Heat Sink Medium Matter Pod Small Laser Heavy Assault Rifle Flak Cannon Improved Datajack Improved Datajack Plasma Cutter [Rating: 21] Favorites ----------- Power Nuclear Core Engine Ion Engine Power Core Nuclear Core Propulsion Aluminum Leg Treads Light Treads Leg Aluminum Leg Wheel Compact Wheel Utility Medium Storage Unit Storage Medium Storage Unit Hackware Makeshift System Shield Protection Light Armor Plating Weapon Flak Cannon Energy Gun Heavy EM Pulse Gun Ballistic Gun Light Assault Rifle Ballistic Cannon Flak Cannon Launcher Grenade Launcher Special Weapon Plasma Cutter Special Melee Weapon Improved Datajack Build | -11 -10 -9 -9 -7 -6 ------- Run | Yrd Mat Mat Min Zio Pro Slots Evolved 2 | . . 2 . . . Power . | . . . . . . Propulsion 1 | . . 1 . . . Utility 1 | . . 1 . . . Weapon . | . . . . . . Parts Attached 41 | 5 2 27 5 2 . Power 2 | . 1 . 1 . . Engine 1 | . 1 . . . . Core 1 | . . . 1 . . Reactor . | . . . . . . Propulsion 11 | 2 . 8 . 1 . Treads 2 | 2 . . . . . Leg 8 | . . 7 . 1 . Wheel 1 | . . 1 . . . Hover . | . . . . . . Flight . | . . . . . . Utility 6 | 1 . 4 . 1 . Device . | . . . . . . Storage 4 | 1 . 3 . . . Processor . | . . . . . . Hackware 1 | . . . . 1 . Protection 1 | . . 1 . . . Artifact . | . . . . . . Weapon 22 | 2 1 15 4 . . Energy Gun 9 | 1 1 7 . . . Energy Cannon . | . . . . . . Ballistic Gun 1 | 1 . . . . . Ballistic Cannon 6 | . . 4 2 . . Launcher 2 | . . 2 . . . Special Weapon 2 | . . 2 . . . Impact Weapon . | . . . . . . Slashing Weapon . | . . . . . . Piercing Weapon . | . . . . . . Special Melee Weapon 2 | . . . 2 . . Unidentified Prototypes . | . . . . . . Parts Lost 18 | . 5 12 . . 1 Power 1 | . 1 . . . . Propulsion 8 | . 2 6 . . . Utility 2 | . . 1 . . 1 Weapon 7 | . 2 5 . . . Highest Loss Streak 5 | . 4 5 . . 1 To Critical Strikes . | . . . . . . Average Slot Usage (%) 62 | . 61 49 88 88 88 Core 3 | . . . 11 11 11 Treads 3 | . 21 . . . . Leg 15 | . . 18 11 17 22 Wheel 2 | . . 2 11 5 . Storage 17 | . 14 13 33 29 22 Hackware 1 | . . . . 4 11 Energy Gun 6 | . 10 8 . . . Ballistic Gun 2 | . 13 . . . . Ballistic Cannon 4 | . . 2 11 11 11 Launcher 1 | . . 3 . . . Special Melee Weapon 3 | . . . 11 11 11 Naked Turns . | . . . . . . Heaviest Build 28 | 8 14 22 28 28 26 Greatest Support 40 | 40 40 30 10 30 30 Greatest Overweight (x) 2 | . 1 1 2 2 . Average Overweight (x) . | . . . 2 . . Largest Inventory Capacity 10 | 8 8 10 10 10 10 Average Capacity 9 | 7 8 9 10 10 10 Most Carried 10 | 5 8 10 9 8 8 Average Carried 6 | 2 5 6 7 7 8 Final Capacity 10 | 8 8 10 10 10 10 Final Carried 9 | 5 6 9 7 8 8 Class Distribution -------------------- 100% | Mutant Dominant Class ---------------- Mutant | -10/Materials Mutant | -9/Materials Mutant | -9/Mines Mutant | -7/Zion Mutant | -6/Proximity Caves Resources | -11 -10 -9 -9 -7 -6 ----------- Run | Yrd Mat Mat Min Zio Pro Matter Collected 841 | 187 90 550 . 14 . Remotely . | . . . . . . Salvage Created 581 | . 115 466 . . . Parts 34 | . 7 27 . . . Haulers Intercepted . | . . . . . . Recyclers Shooed 1 | . . 1 . . . Parts Field Recycled . | . . . . . . Retrieved Matter . | . . . . . . Parts Self-Destructed . | . . . . . . Prevented . | . . . . . . Kills | -11 -10 -9 -9 -7 -6 ------- Run | Yrd Mat Mat Min Zio Pro Combat Hostiles Destroyed 17 | . 3 14 . . . Guns 6 | . 3 3 . . . Cannons 5 | . . 5 . . . AOE 6 | . . 6 . . . Classes Destroyed 7 | . 1 6 . . . Worker 1 | . . 1 . . . Recycler 1 | . . 1 . . . Watcher 1 | . . 1 . . . Swarmer 3 | . . 3 . . . Grunt 11 | . 3 8 . . . Brawler 1 | . . 1 . . . Sentry 2 | . . 2 . . . Best Kill Streak 6 | . 2 6 . . . Combat Bots Only 6 | . 2 6 . . . Max Kills in Single Turn 2 | . 1 2 . . . Gunslinging . | . . . . . . Exploded 2 | . . 2 . . . Melee . | . . . . . . Uniques/NPCs Destroyed . | . . . . . . Combat | -11 -10 -9 -9 -7 -6 -------- Run | Yrd Mat Mat Min Zio Pro Hostile Shots Fired 261 | . 83 174 . . 4 Missed 76 | . 20 55 . . 1 Damage Taken 2466 | . 834 1576 . . 56 Core 606 | . 203 386 . . 17 Absorbed by Shields . | . . . . . . Core Remaining (%) 59 | 100 18 . . . . Volleys Fired 83 | . 22 61 . . . Largest 2 | . 2 2 . . . Hottest 90 | . 85 90 . . . Shots Fired 117 | . 36 81 . . . Gun 71 | . 36 35 . . . Cannon 15 | . . 15 . . . Launcher 21 | . . 21 . . . Special 10 | . . 10 . . . Kinetic 37 | . 22 15 . . . Thermal 33 | . 6 27 . . . Explosive 21 | . . 21 . . . Electromagnetic 26 | . 8 18 . . . Robot Hit Streak 12 | . 7 12 . . . Robot Miss Streak 4 | . 2 4 . . . Penetration Max . | . . . . . . Secondary Targets . | . . . . . . Shots Hit Robots 70 | . 26 44 . . . Core Hits 50 | . 9 41 . . . Critical Kills . | . . . . . . Critical Parts Destroyed . | . . . . . . Critical Strikes . | . . . . . . Melee Attacks . | . . . . . . Impact . | . . . . . . Slashing . | . . . . . . Piercing . | . . . . . . Sneak Attacks . | . . . . . . Combat Hostiles . | . . . . . . Follow-up Attacks . | . . . . . . Damage Inflicted 1560 | . 279 1281 . . . Guns 571 | . 273 298 . . . Cannons 290 | . . 290 . . . Explosions 656 | . . 656 . . . Melee . | . . . . . . Ramming 32 | . 6 26 . . . Kinetic 431 | . 141 290 . . . Thermal 199 | . 51 148 . . . Explosive 656 | . . 656 . . . Electromagnetic 242 | . 81 161 . . . Impact . | . . . . . . Slashing . | . . . . . . Piercing . | . . . . . . Highest Corruption 2 | . 2 . . . . Average Corruption 2 | . 2 . . . . Corruption Purged . | . . . . . . Corruption Blocked . | . . . . . . Overload Shots . | . . . . . . Overflow Damage 9 | . . 9 . . . Projectiles 4 | . . 4 . . . Explosions 5 | . . 5 . . . Melee . | . . . . . . Knockbacks 3 | . . 3 . . . Impact . | . . . . . . Kinetic 3 | . . 3 . . . Secondary . | . . . . . . Self-Inflicted Damage 86 | . 2 84 . . . Shots 5 | . . 5 . . . Rammed 3 | . 3 . . . . Targets Rammed 16 | . 3 13 . . . Kicked 13 | . . 13 . . . Crushed . | . . . . . . Highest Temperature 322 | . 322 78 . . . Average Temperature 88 | . 138 19 . . . Received Heat Transfer 1167 | . 489 669 . . 9 Siege Activations . | . . . . . . Robots Corrupted . | . . . . . . Combat Hostiles . | . . . . . . Parts Fried 1 | . . 1 . . . Impact Corruptions . | . . . . . . Robots Melted . | . . . . . . Combat Hostiles . | . . . . . . Parts Melted 1 | . . 1 . . . Heat Transferred 448 | . 111 337 . . . Parts Sabotaged . | . . . . . . Parts Stolen . | . . . . . . Parts Stripped . | . . . . . . Power Chain Reactions . | . . . . . . Alert | -11 -10 -9 -9 -7 -6 ------- Run | Yrd Mat Mat Min Zio Pro Peak Influence 354 | . 62 354 112 . . Initial 112 | . . 19 112 . . Average 144 | . 34 202 112 . . Maximum Alert Level 1 | . . 1 . . . Low Security (%) 64 | 100 100 44 100 . . Level 1 35 | . . 55 . . . Level 2 . | . . . . . . Level 3 . | . . . . . . Level 4 . | . . . . . . Level 5 . | . . . . . . High Security . | . . . . . . Max Security . | . . . . . . Squads Dispatched 3 | . 1 2 . . . Investigation 1 | . 1 . . . . Extermination . | . . . . . . Reinforcement 2 | . . 2 . . . Assault . | . . . . . . Garrison . | . . . . . . Intercept . | . . . . . . Searches Triggered . | . . . . . . Construction Impeded 1 | . . 1 . . . Haulers Reinforced . | . . . . . . Active Scanning Responses . | . . . . . . Cargo Convoy Interrupts . | . . . . . . Stealth | -11 -10 -9 -9 -7 -6 --------- Run | Yrd Mat Mat Min Zio Pro Distress Signals 1 | . . 1 . . . Communications Jammed . | . . . . . . Distress Signals . | . . . . . . Times Spotted 34 | . 9 21 . . 4 Peak Tracking Total 9 | . 6 5 . . 9 Tactical Retreats 2 | . . 2 . . . Traps | -11 -10 -9 -9 -7 -6 ------- Run | Yrd Mat Mat Min Zio Pro Traps Triggered 1 | . 1 . . . . Indirectly . | . . . . . . Trap Hack Attempts . | . . . . . . Triggered . | . . . . . . Disarmed . | . . . . . . Reprogrammed . | . . . . . . Reused . | . . . . . . Traps Extracted . | . . . . . . Installed . | . . . . . . Triggered . | . . . . . . Machines | -11 -10 -9 -9 -7 -6 ---------- Run | Yrd Mat Mat Min Zio Pro Machines Disabled 1 | . . 1 . . . Max in Single Turn 1 | . . 1 . . . Machines Repaired . | . . . . . . Machines Dismantled . | . . . . . . Machines Sabotaged . | . . . . . . Overloaded Fab Kills . | . . . . . . Hacking | -11 -10 -9 -9 -7 -6 --------- Run | Yrd Mat Mat Min Zio Pro Machines Accessed 3 | . 1 2 . . . Terminals 3 | . 1 2 . . . Fabricators . | . . . . . . Repair Stations . | . . . . . . Recycling Units . | . . . . . . Scanalyzers . | . . . . . . Garrison Access . | . . . . . . Total Hacks 5 | . 2 3 . . . Successful 4 | . 1 3 . . . Failed 1 | . 1 . . . . Catastrophic 1 | . 1 . . . . Database Lockouts . | . . . . . . Manual . | . . . . . . Terminals 5 | . 2 3 . . . Fabricators . | . . . . . . Repair Stations . | . . . . . . Recycling Units . | . . . . . . Scanalyzers . | . . . . . . Garrison Access . | . . . . . . Terminal Hacks 4 | . 1 3 . . . Record 3 | . 1 2 . . . Alert Level 1 | . . 1 . . . Fabricator Hacks . | . . . . . . Repair Station Hacks . | . . . . . . Recycling Unit Hacks . | . . . . . . Scanalyzer . | . . . . . . Garrison Access Hacks . | . . . . . . Unauthorized Hacks . | . . . . . . Terminals . | . . . . . . Fabricators . | . . . . . . Repair Stations . | . . . . . . Recycling Units . | . . . . . . Scanalyzers . | . . . . . . Garrison Access . | . . . . . . Data Cores Recovered . | . . . . . . Used . | . . . . . . Hacking Detections 1 | . 1 . . . . Full Trace Events . | . . . . . . Feedback Events . | . . . . . . Feedback Blocked . | . . . . . . Robot Schematics Acquired . | . . . . . . Robots Built . | . . . . . . Authchips . | . . . . . . Time . | . . . . . . Total Robot Build Rating . | . . . . . . Part Schematics Acquired . | . . . . . . Parts Built . | . . . . . . Authchips . | . . . . . . Time . | . . . . . . Total Part Build Rating . | . . . . . . Parts Repaired . | . . . . . . Time . | . . . . . . Parts Recycled . | . . . . . . Recycled Matter . | . . . . . . Retrieved Matter . | . . . . . . Retrieved Components . | . . . . . . Parts Scanalyzed . | . . . . . . Part Schematics Acquired . | . . . . . . Parts Damaged . | . . . . . . Bothacking | -11 -10 -9 -9 -7 -6 ------------ Run | Yrd Mat Mat Min Zio Pro Used RIF Installer . | . . . . . . Robots Hacked . | . . . . . . Non-combat . | . . . . . . Combat . | . . . . . . Robot Hacks Applied . | . . . . . . Relay Couplers Released . | . . . . . . Fabnet Peak Effective % . | . . . . . . Robots Rewired . | . . . . . . Allies Hacked . | . . . . . . Hacks Repelled . | . . . . . . Allies | -11 -10 -9 -9 -7 -6 -------- Run | Yrd Mat Mat Min Zio Pro Total Allies . | . . . . . . Largest Group . | . . . . . . Highest-Rated Group . | . . . . . . Highest-Rated Ally . | . . . . . . Total Orders . | . . . . . . Ally Attacks . | . . . . . . Total Damage . | . . . . . . Kills . | . . . . . . Allies Corrupted . | . . . . . . Allies Melted . | . . . . . . Intel | -11 -10 -9 -9 -7 -6 ------- Run | Yrd Mat Mat Min Zio Pro Robot Analysis Total . | . . . . . . Derelict Logs Recovered 2 | . . . 1 1 . Drone Launches . | . . . . . . Drone Recoveries . | . . . . . . Exploration | -11 -10 -9 -9 -7 -6 ------------- Run | Yrd Mat Mat Min Zio Pro Turns Passed 1534 | 109 238 768 101 109 209 Spaces Moved 852 | 63 126 403 37 62 161 Core 48 | 3 45 . . . . Treads 141 | 60 81 . . . . Legs 649 | . . 389 37 62 161 Wheels 14 | . . 14 . . . Hover . | . . . . . . Flight . | . . . . . . Fastest Speed 50 | 50 100 100 260 130 130 Average Speed 142 | 154 138 131 260 169 130 Slowest Speed 260 | 160 160 190 260 260 130 Overloaded Moves . | . . . . . . Propulsion Burnouts . | . . . . . . Robots Hopped . | . . . . . . Cave-ins Triggered . | . . . . . . Exploration Rate (%) 14 | 4 21 24 14 8 15 Regions Visited 5 Branch Regions 3 Pre-discovered Areas . | . . . . . . Known Exits Taken . | . . . . . . Unknown Exits Taken 5 | 1 1 1 1 1 . Scrap Searched 1 | . . . . 1 . Spaces Dug 43 | . . 43 . . . Terrain Destroyed 106 | . . 106 . . . Melee . | . . . . . . Projectile . | . . . . . . AOE 106 | . . 106 . . . Terrain Rammed . | . . . . . . Walls Destroyed . | . . . . . . Machines Disabled . | . . . . . . Actions | -11 -10 -9 -9 -7 -6 --------- Run | Yrd Mat Mat Min Zio Pro Total 1036 | 72 158 537 43 65 161 Wait 5 | . . 5 . . . Move 847 | 62 125 402 36 61 161 Hop . | . . . . . . Pick Up 29 | 5 4 19 . 1 . Fast Attach 15 | 5 . 9 . 1 . Attach 19 | . 1 14 4 . . Detach 4 | . . 2 2 . . Swap 7 | . 1 4 1 1 . Drop 11 | . 2 8 . 1 . Fire 83 | . 22 61 . . . Melee . | . . . . . . Ram 3 | . 3 . . . . Kick 13 | . . 13 . . . Crush . | . . . . . . Escape Stasis . | . . . . . . Rewire . | . . . . . . Trap . | . . . . . . Miscellaneous . | . . . . . . Route ------- -11/Scrapyard -10/Materials -9/Materials -9/Mines -7/Zion -6/Proximity Caves (discovered 1 exit: Fac) History --------- Turn | Location | Event 33 | -11/Scrapyard | Discovered new exit (range 15) 110 | -11/Scrapyard | Entered Materials 298 | -10/Materials | Core integrity fell below 50% 312 | -10/Materials | Build established: Mutant 332 | -10/Materials | Lost 4 parts (1p2n1w) 338 | -10/Materials | Discovered new exit (range 10) 340 | -10/Materials | Core integrity fell below 20% 348 | -10/Materials | Entered another Materials area 348 | -9/Materials | Evolved 2 slots: Propulsion x1, Utility x1 810 | -9/Materials | Discovered new exit (range 15) 903 | -9/Materials | Core integrity fell below 50% 918 | -9/Materials | Lost 4 parts (4n) 962 | -9/Materials | Core integrity fell below 20% 1027 | -9/Materials | Lost 5 parts (2n1u2w) 1116 | -9/Materials | Entered Mines 1171 | -9/Mines | A Derelict revealed a hidden shortcut to a safe place 1217 | -9/Mines | Entered Zion 1259 | -7/Zion | Learned location of 1 exit from Proximity Caves 1309 | -7/Zion | Discovered new exit (range 13) 1326 | -7/Zion | Entered Proximity Caves 1327 | -6/Proximity Caves | Identified exit to Factory 1535 | -6/Proximity Caves | Destroyed by S-27 Virus with Autogun Last Messages --------------- Acquired derelict log, extracted data. Data stored: Proximity Caves exits (x1). Searching scrap... Found Mak. System Shield. Found Mak. Leg. Found 14 Matter. Acquired 14 matter. Acquired Mak. Leg. Dropped Com. Wheel. Acquired Mak. System Shield. PUBLIC SERVICE ANNOUNCEMENT: Quarantine Array scanned 1 system, cleaned 0. EXIT=FOUND [Achievement: Tourist] LOCATION=UNKNOWN GOAL=ESCAPE Loading 1 Proximity Caves exit... Med. Matter Pod destroyed. Slug penetrates Wall. S-27 Virus springs to life. Map ----- +----------------------------------------------------+ | ?????????????????????????????????????????????????? | | ?????????????????????????????????????????????????? | | ?????????????????????????????????????????????????? | | ?????????????????????????????????????????????????? | | ?????????????????????????????????????????????????? | | ?????????????????????????????????????????????????? | | ?????????????????????????????????????????????????? | | ??###????????????????????????????????????????????? | | ?## #???????????????????????????????????????????? | | ## #??????????????????????????????????????????? | | # #?????????????????????????????????????????? | | ?# ######????###########????????????????????? | | ?# ## ###?## ## ##???????????????????? | | ??# ### ###?????????????????? | | ???# ##????????????????? | | #??????# #????????? ??????? | | #####?## #### #???????? ????? | | ### ########## ###?????## ????? | | #?# ###????# ????? | | #?# ######## ##??# #???? | | ## #??????????# ### #???? | | ### #??????????# #??? | | ??# ##??#??????# ???? | | ??# #??#" ????# # ???? | | ??## #??### ??# #? ### ?????? | | ???# #??# # @ #??#??????????? | | #### ## s s #????????????? | | # ## ### ####????????????? | | # ### ####;##?# #???????????????? | | ## ##?# ????## ?? #???????????????? | | ?## ####?# ????????#?#######???????????????? | | ??# ##???# ?????????????????????????????????? | | ??# ####???# ???????????????????????????????????? | | ??# #???????????????????????????????????????????? | | ??# #???????????????????????????????????????????? | | ??# #???????????????????????????????????????????? | | ### #???????????????????????????????????????????? | | #???????????????????????????????????????????? | | ## #???????????????????????????????????????????? | | ## #???????????????????????????????????????????? | | ## ##??????????????????????????????????????????? | | #??????????????????????????????????????????? | | #??????????????????????????????????????????? | | ##??????????????????????????????????????????? | | ######???????????????????????????????????????????? | | ?????????????????????????????????????????????????? | | ?????????????????????????????????????????????????? | | ?????????????????????????????????????????????????? | | ?????????????????????????????????????????????????? | | ?????????????????????????????????????????????????? | +----------------------------------------------------+ Best States ------------- Heat Dissipation 28 Energy Generation 14 Energy Capacity 250 Matter Stores 398 Matter Capacity 500 Sight Range 16 Terrain Scan Density 10 Armor Coverage 150 Evasion (%) 55 Recoil Reduction 2 Defensive Hacking 11 Item Schematics ----------------- None Robot Schematics ------------------ None Fabricated ------------ Nothing Alien Tech Used ----------------- None Achievements -------------- Tourist Challenges ------------ None Game ------ Seed GlidesysDirtyCannon Manual? 0 Play Time 00:15:55 Cumulative 1.8 hours Start 2024.07.06 @ 16:55:04 End 2024.07.06 @ 17:11:18 Sessions 1 Manual Loads 0 Difficulty Rogue Special Mode None Game No. 7 Rogue 7 Adventurer 0 Explorer 0 Win Type - Total 0 Types 0/0/0/0/0/0/0/0/0 Lore% 0 Gallery% 7 Achievement% 6 Wizard Run 0 Options --------- Layout 1 ASCII 0 Keyboard 0 Movement Arrows Keybinds 0 Fullscreen 1 Font 32/SmallcapsGlow Map View 50x35 Zoom Use 0% Tactical HUD 0 Map Filters NONE Filters NONE Steam 1 RUN: 83ffe2c2-5e1c-452d-98d8-6c6800b65d01